lending/lending_fUSD_20250121
["ID","MTS","AMOUNT","RATE_DAILY","PERIOD"]
[349910852,1737496238601,-500.0,0.00020878,2]
[349910853,1737496238610,-664.82,0.00020878,2]
[349910854,1737496238619,-500.0,0.00020878,2]
[349910855,1737496238628,-88.91165051,0.00020878,2]
[349910856,1737496238646,-411.08834949,0.00020878,2]
[349910857,1737496238655,-500.0,0.00020878,2]
[349910858,1737496238665,-500.0,0.00020878,2]
[349910859,1737496238675,-465.12831339,0.00020878,2]
[349910860,1737496238699,-34.87168661,0.00020878,2]
[349910861,1737496238709,-317.23436124,0.00020878,2]
[349910862,1737496238721,-182.76563876,0.00020878,2]
[349910863,1737496238730,-229.37490684,0.00020878,2]
[349910864,1737496238742,-270.62509316,0.00020878,2]
[349910865,1737496238750,-419.39821957,0.00020878,2]
[349910888,1737496239659,-404.48092,0.0002066,2]
[349910890,1737496239669,-547.84178043,0.00020878,2]
[349910892,1737496239678,-500.0,0.00020878,2]
[349910894,1737496239687,-500.0,0.00020878,2]
[349910896,1737496239698,-500.0,0.00020878,2]
[349910898,1737496239707,-500.0,0.00020878,2]
[349910900,1737496239717,-500.0,0.00020878,2]
[349910902,1737496239726,-358.27965412,0.00020878,2]
[349910905,1737496239738,-141.72034588,0.00020878,2]
[349910907,1737496239747,-669.61,0.00020878,2]
[349910909,1737496239756,-219.49361412,0.00020878,2]
[349910911,1737496239767,-280.50638588,0.00020878,2]
[349910913,1737496239776,-385.0761239,0.00020879,2]
[349910919,1737496239881,-500.0,0.00020878,2]
[349910920,1737496239891,-48695.17151407,0.00020879,2]
[349910921,1737496239904,-267.56,0.00020879,2]
[349910922,1737496239952,-1066.5484684,0.00019298,2]
[349910923,1737496239961,-120388.32586203,0.00020879,2]
[349910924,1737496239971,-13480.1214,0.00020879,2]
[349910925,1737496239980,-253.66706131,0.00020879,2]
[349910926,1737496239990,-320.22186294,0.00020883,2]
[349910927,1737496240000,-16914.24681583,0.00020885,2]
[349910928,1737496240010,-324.71121144,0.00020887,2]
[349910929,1737496240019,-1240.82,0.00020889,7]
[349910930,1737496240030,-1240.82,0.00020889,7]
[349910931,1737496240039,-2595.45504815,0.00020889,2]
[349910932,1737496240050,-2595.45504815,0.00020892,2]
[349910933,1737496240060,-262.92224009,0.00020893,2]
[349910934,1737496240070,-200.0,0.00020896,2]
[349910935,1737496240080,-205.7092011,0.000209,2]
[349910936,1737496240091,-177.27211555,0.00020903,2]
[349910937,1737496240101,-8418.7382785,0.00020903,2]
[349910938,1737496240111,-216.47414096,0.00020909,2]
[349910939,1737496240120,-205.0,0.0002091,2]
[349910940,1737496240129,-207.0,0.0002091,2]
[349910941,1737496240139,-324.71121144,0.0002091,2]
[349910942,1737496240151,-1730.30336543,0.00020913,2]
[349910943,1737496240163,-8418.7382785,0.00020915,2]
[349910944,1737496240173,-216.47414096,0.00020915,2]
[349910945,1737496240183,-8418.7382785,0.00020915,2]
[349910946,1737496240193,-16914.24681583,0.00020916,2]
[349910947,1737496240203,-262.92224009,0.00020923,2]
[349910948,1737496240214,-394.38336013,0.00020923,2]
[349910949,1737496240224,-262.92224009,0.00020925,2]
[349910950,1737496240235,-262.92224009,0.00020927,2]
[349910951,1737496240244,-8418.7382785,0.00020935,2]
[349910952,1737496240253,-324.71121144,0.00020936,2]
[349910953,1737496240263,-320.22186294,0.00020938,2]
[349910954,1737496240273,-262.92224009,0.0002094,2]
[349910955,1737496240282,-216.47414096,0.00020941,2]
[349910956,1737496240292,-394.38336013,0.00020946,2]
[349910957,1737496240301,-153.14980159,0.00020959,2]
[349910958,1737496240311,-321600.50034376,0.00020976,2]
[349910959,1737496240322,-500.0,0.00020976,2]
[349910960,1737496240331,-500.0,0.00020976,2]
[349910961,1737496240342,-500.0,0.00020976,2]
[349910962,1737496240352,-500.0,0.00020976,2]
[349910963,1737496240362,-500.0,0.00020976,2]
[349910964,1737496240373,-648.4,0.00020976,2]
[349910965,1737496240383,-532.83,0.00020976,2]
[349910966,1737496240394,-536.77,0.00020976,2]
[349910967,1737496240404,-500.0,0.00020976,2]
[349910968,1737496240414,-500.0,0.00020976,2]
[349910969,1737496240426,-500.0,0.00020976,2]
[349910970,1737496240435,-500.0,0.00020976,2]
[349910971,1737496240444,-500.0,0.00020976,2]
[349910972,1737496240453,-500.0,0.00020976,2]
[349910973,1737496240463,-500.0,0.00020976,2]
[349910974,1737496240473,-500.0,0.00020976,2]
[349910975,1737496240483,-500.0,0.00020976,2]
[349910976,1737496240493,-500.0,0.00020976,2]
[349910977,1737496240503,-470.14519971,0.00020976,2]
[349910978,1737496240513,-500.0,0.00020976,2]
[349910979,1737496240701,-500.0,0.00020976,2]
[349910980,1737496240710,-500.0,0.00020976,2]
[349910981,1737496240719,-438.17557714,0.00020976,2]
[349910982,1737496240728,-500.0,0.00020976,2]
[349910983,1737496240738,-166.817959,0.00020976,2]
[349910984,1737496240748,-154.96,0.00020976,2]
[349910985,1737496240757,-521.75963621,0.00020976,2]
[349910986,1737496240767,-525.961575,0.00020976,2]
[349910987,1737496240777,-500.0,0.00020976,2]
[349910988,1737496240786,-500.0,0.00020976,2]
[349910989,1737496240796,-500.0,0.00020976,2]
[349910990,1737496240806,-500.0,0.00020976,2]
[349910991,1737496240815,-500.0,0.00020976,2]
[349910992,1737496240824,-500.0,0.00020976,2]
[349910993,1737496240834,-500.0,0.00020976,2]
[349910994,1737496240844,-500.0,0.00020976,2]
[349910995,1737496240854,-500.0,0.00020976,2]
[349910996,1737496240864,-500.0,0.00020976,2]
[349910997,1737496240874,-683.39,0.00020976,2]
[349910998,1737496240883,-500.0,0.00020976,2]
[349910999,1737496240892,-500.0,0.00020976,2]
[349911000,1737496240902,-500.0,0.00020976,2]
[349911001,1737496240912,-683.89,0.00020976,2]
[349911002,1737496240924,-500.0,0.00020976,2]
[349911003,1737496240934,-508.91,0.00020976,2]
[349911004,1737496240943,-500.0,0.00020976,2]
[349911005,1737496240953,-636.59,0.00020976,2]
[349911006,1737496240963,-500.0,0.00020976,2]
[349911007,1737496240973,-500.0,0.00020976,2]
[349911008,1737496240982,-904.99,0.00020976,2]
[349911009,1737496240991,-536.42,0.00020976,2]
[349911010,1737496240999,-500.0,0.00020976,2]
[349911011,1737496241009,-500.0,0.00020976,2]
[349911012,1737496241019,-568.78,0.00020976,2]
[349911013,1737496241028,-1066.54,0.00020976,2]
[349911014,1737496241038,-678.18,0.00020976,2]
[349911015,1737496241047,-500.0,0.00020976,2]
[349911016,1737496241057,-715.61,0.00020976,2]
[349911017,1737496241067,-643.77,0.00020976,2]
[349911018,1737496241080,-500.0,0.00020976,2]
[349911019,1737496241091,-900.49,0.00020976,2]
[349911020,1737496241102,-500.0,0.00020976,2]
[349911021,1737496241112,-645.53,0.00020976,2]
[349911022,1737496241123,-500.0,0.00020976,2]
[349911023,1737496241132,-500.0,0.00020976,2]
[349911024,1737496241142,-500.0,0.00020976,2]
[349911025,1737496241154,-210.27649612,0.00020976,2]
[349911026,1737496241164,-500.0,0.00020976,2]
[349911027,1737496241176,-500.0,0.00020976,2]
[349911028,1737496241187,-500.0,0.00020976,2]
[349911029,1737496241197,-500.0,0.00020976,2]
[349911030,1737496241206,-500.0,0.00020976,2]
[349911031,1737496241216,-500.0,0.00020976,2]
[349911032,1737496241227,-1435.17,0.00020976,2]
[349911033,1737496241237,-605.73,0.00020976,2]
[349911034,1737496241246,-1112.87,0.00020976,2]
[349911035,1737496241255,-261.98984058,0.00020976,2]
[349911036,1737496241265,-500.0,0.00020976,2]
[349911037,1737496241275,-500.0,0.00020976,2]
[349911038,1737496241285,-509.04402403,0.00020976,2]
[349911039,1737496241294,-568.41,0.00020976,2]
[349911040,1737496241304,-500.0,0.00020976,2]
[349911041,1737496241314,-500.0,0.00020976,2]
[349911042,1737496241324,-1731.9,0.00020976,2]
[349911043,1737496241334,-556.57213633,0.00020976,2]
[349911044,1737496241344,-1066.78,0.00020976,2]
[349911045,1737496241354,-966.24,0.00020976,2]
[349911046,1737496241364,-507.21300634,0.00020976,2]
[349911047,1737496241374,-500.0,0.00020976,2]
[349911048,1737496241384,-1390.28,0.00020976,2]
[349911049,1737496241396,-506.20366128,0.00020976,2]
[349911050,1737496241405,-500.0,0.00020976,2]
[349911051,1737496241416,-500.0,0.00020976,2]
[349911052,1737496241427,-500.55264349,0.00020976,2]
[349911053,1737496241437,-500.0,0.00020976,2]
[349911054,1737496241447,-500.0,0.00020976,2]
[349911055,1737496241456,-1228.0,0.00020976,2]
[349911056,1737496241467,-500.0,0.00020976,2]
[349911057,1737496241478,-500.0,0.00020976,2]
[349911058,1737496241488,-502.38423898,0.00020976,2]
[349911059,1737496241498,-167.182073,0.00020976,2]
[349911060,1737496241508,-500.0,0.00020976,2]
[349911061,1737496241517,-501.31043458,0.00020976,2]
[349911062,1737496241527,-834.73,0.00020976,2]
[349911063,1737496241537,-500.0,0.00020976,2]
[349911064,1737496241546,-500.0,0.00020976,2]
[349911065,1737496241555,-500.0,0.00020976,2]
[349911066,1737496241565,-500.0,0.00020976,2]
[349911067,1737496241575,-500.0,0.00020976,2]
[349911068,1737496241585,-500.0,0.00020976,2]
[349911069,1737496241595,-502.60314726,0.00020976,2]
[349911070,1737496241604,-2168.1,0.00020976,2]
[349911071,1737496241613,-614.21,0.00020976,2]
[349911072,1737496241622,-503.81028674,0.00020976,2]
[349911073,1737496241631,-500.0,0.00020976,2]
[349911074,1737496241641,-500.0,0.00020976,2]
[349911075,1737496241651,-500.0,0.00020976,2]
[349911076,1737496241661,-500.0,0.00020976,2]
[349911077,1737496241672,-500.0,0.00020976,2]
[349911078,1737496241681,-500.0,0.00020976,2]
[349911079,1737496241691,-500.0,0.00020976,2]
[349911080,1737496241700,-861.42,0.00020976,2]
[349911081,1737496241709,-1326.22,0.00020976,2]
[349911082,1737496241718,-501.94848726,0.00020976,2]
[349911083,1737496241727,-500.0,0.00020976,2]
[349911084,1737496241737,-500.0,0.00020976,2]
[349911085,1737496241747,-500.0,0.00020976,2]
[349911086,1737496241756,-500.0,0.00020976,2]
[349911087,1737496241765,-500.0,0.00020976,2]
[349911088,1737496241774,-2304.38,0.00020976,2]
[349911089,1737496241785,-500.0,0.00020976,2]
[349911090,1737496241795,-500.0,0.00020976,2]
[349911091,1737496241805,-500.0,0.00020976,2]
[349911092,1737496241815,-500.0,0.00020976,2]
[349911093,1737496241824,-511.29,0.00020976,2]
[349911094,1737496241834,-500.0,0.00020976,2]
[349911095,1737496241843,-500.0,0.00020976,2]
[349911096,1737496241853,-706.2,0.00020976,2]
[349911097,1737496241863,-500.0,0.00020976,2]
[349911098,1737496241873,-500.0,0.00020976,2]
[349911099,1737496241882,-500.0,0.00020976,2]
[349911100,1737496241892,-520.08,0.00020976,2]
[349911101,1737496241902,-500.0,0.00020976,2]
[349911102,1737496241912,-500.0,0.00020976,2]
[349911103,1737496241923,-500.0,0.00020976,2]
[349911104,1737496241933,-500.0,0.00020976,2]
[349911105,1737496241943,-2729.88,0.00020976,2]
[349911106,1737496241954,-926.34,0.00020976,2]
[349911107,1737496241964,-500.0,0.00020976,2]
[349911108,1737496241974,-577.04,0.00020976,2]
[349911109,1737496241984,-500.0,0.00020976,2]
[349911110,1737496241994,-722.62,0.00020976,2]
[349911111,1737496242004,-510.32,0.00020976,2]
[349911112,1737496242013,-500.0,0.00020976,2]
[349911113,1737496242023,-1009.23,0.00020976,2]
[349911114,1737496242033,-500.0,0.00020976,2]
[349911115,1737496242043,-673.95,0.00020976,2]
[349911116,1737496242053,-1579.26,0.00020976,2]
[349911117,1737496242063,-500.0,0.00020976,2]
[349911118,1737496242073,-500.0,0.00020976,2]
[349911119,1737496242083,-13945.552084,0.00020977,2]
[349911120,1737496242093,-4892.1928098,0.00020977,2]
[349911121,1737496242103,-3203.35,0.00020978,2]
[349911122,1737496242113,-500.0,0.00020978,2]
[349911123,1737496242123,-500.0,0.00020978,2]
[349911124,1737496242133,-500.0,0.00020978,2]
[349911125,1737496242143,-787.13,0.00020978,2]
[349911126,1737496242155,-1910.74,0.00020978,2]
[349911127,1737496242165,-500.0,0.00020978,2]
[349911128,1737496242176,-3496.72,0.00020978,2]
[349911129,1737496242187,-500.0,0.00020978,2]
[349911130,1737496242196,-801.19,0.00020978,2]
[349911132,1737496242206,-683.38,0.00020978,2]
[349911134,1737496242215,-500.0,0.00020978,2]
[349911136,1737496242227,-1369.1,0.00020978,2]
[349911137,1737496242237,-500.0,0.00020978,2]
[349911138,1737496242247,-500.0,0.00020978,2]
[349911139,1737496242257,-802.28,0.00020978,2]
[349911140,1737496242267,-835.18,0.00020978,2]
[349911141,1737496242278,-500.0,0.00020978,2]
[349911142,1737496242289,-500.0,0.00020978,2]
[349911143,1737496242299,-1000.0,0.00020978,2]
[349911144,1737496242308,-603.77,0.00020978,2]
[349911145,1737496242319,-500.0,0.00020978,2]
[349911146,1737496242328,-961.09,0.00020978,2]
[349911147,1737496242338,-500.0,0.00020978,2]
[349911148,1737496242347,-403.85251243,0.00020979,2]
[349911149,1737496242357,-500.0,0.00020979,2]
[349911150,1737496242367,-500.0,0.00020979,2]
[349911151,1737496242376,-500.0,0.00020979,2]
[349911152,1737496242386,-500.0,0.00020979,2]
[349911153,1737496242396,-500.0,0.00020979,2]
[349911154,1737496242405,-500.0,0.00020979,2]
[349911155,1737496242415,-500.0,0.00020979,2]
[349911156,1737496242427,-500.0,0.00020979,2]
[349911157,1737496242437,-500.0,0.00020979,2]
[349911158,1737496242447,-500.0,0.00020979,2]
[349911159,1737496242456,-500.0,0.00020979,2]
[349911160,1737496242466,-500.0,0.00020979,2]
[349911161,1737496242475,-500.0,0.00020979,2]
[349911162,1737496242484,-500.0,0.00020979,2]
[349911163,1737496242493,-500.0,0.00020979,2]
[349911164,1737496242503,-154.38115802,0.00020979,2]
[349911165,1737496242513,-500.0,0.00020979,2]
[349911166,1737496242522,-504.73948091,0.00020979,2]
[349911167,1737496242532,-500.0,0.00020979,2]
[349911168,1737496242542,-500.0,0.00020979,2]
[349911169,1737496242551,-500.0,0.00020979,2]
[349911170,1737496242561,-501.29193845,0.00020979,2]
[349911171,1737496242571,-500.0,0.00020979,2]
[349911172,1737496242581,-500.0,0.00020979,2]
[349911173,1737496242590,-500.0,0.00020979,2]
[349911174,1737496242600,-500.0,0.00020979,2]
[349911175,1737496242610,-500.0,0.00020979,2]
[349911176,1737496242619,-500.0,0.00020979,2]
[349911177,1737496242629,-500.0,0.00020979,2]
[349911178,1737496242640,-500.0,0.00020979,2]
[349911179,1737496242649,-500.0,0.00020979,2]
[349911180,1737496242659,-500.0,0.00020979,2]
[349911181,1737496242671,-500.0,0.00020979,2]
[349911182,1737496242680,-526.32387161,0.00020979,2]
[349911183,1737496242689,-500.0,0.00020979,2]
[349911184,1737496242700,-500.0,0.00020979,2]
[349911185,1737496242710,-554.57343114,0.00020979,2]
[349911186,1737496242719,-500.0,0.00020979,2]
[349911187,1737496242729,-500.0,0.00020979,2]
[349911188,1737496242739,-500.0,0.00020979,2]
[349911189,1737496242748,-500.0,0.00020979,2]
[349911190,1737496242759,-500.0,0.00020979,2]
[349911191,1737496242769,-500.0,0.00020979,2]
[349911192,1737496242778,-500.0,0.00020979,2]
[349911193,1737496242788,-500.0,0.00020979,2]
[349911194,1737496242798,-500.0,0.00020979,2]
[349911195,1737496242807,-500.0,0.00020979,2]
[349911196,1737496242818,-500.0,0.00020979,2]
[349911197,1737496242827,-500.0,0.00020979,2]
[349911198,1737496242837,-500.0,0.00020979,2]
[349911199,1737496242847,-500.0,0.00020979,2]
[349911200,1737496242856,-569.87751083,0.00020979,2]
[349911201,1737496242866,-640.2319155,0.00020979,2]
[349911202,1737496242876,-500.0,0.00020979,2]
[349911203,1737496242886,-500.0,0.00020979,2]
[349911204,1737496242897,-500.0,0.00020979,2]
[349911206,1737496242906,-500.0,0.00020979,2]
[349911208,1737496242915,-500.0,0.00020979,2]
[349911209,1737496242927,-500.0,0.00020979,2]
[349911210,1737496242937,-500.0,0.00020979,2]
[349911211,1737496242947,-500.0,0.00020979,2]
[349911212,1737496242956,-500.0,0.00020979,2]
[349911213,1737496242966,-500.0,0.00020979,2]
[349911214,1737496242976,-500.0,0.00020979,2]
[349911215,1737496242986,-500.0,0.00020979,2]
[349911216,1737496242996,-500.0,0.00020979,2]
[349911217,1737496243006,-500.0,0.00020979,2]
[349911218,1737496243016,-500.0,0.00020979,2]
[349911219,1737496243025,-500.0,0.00020979,2]
[349911221,1737496243034,-500.0,0.00020979,2]
[349911223,1737496243044,-501.9157134,0.00020979,2]
[349911225,1737496243054,-498.37097582,0.00020979,2]
[349911227,1737496243064,-500.0,0.00020979,2]
[349911229,1737496243074,-502.70497285,0.00020979,2]
[349911231,1737496243084,-500.0,0.00020979,2]
[349911232,1737496243093,-500.0,0.00020979,2]
[349911233,1737496243104,-500.0,0.00020979,2]
[349911234,1737496243113,-500.0,0.00020979,2]
[349911235,1737496243123,-500.0,0.00020979,2]
[349911236,1737496243132,-500.0,0.00020979,2]
[349911237,1737496243142,-500.0,0.00020979,2]
[349911238,1737496243157,-500.0,0.00020979,2]
[349911239,1737496243167,-500.0,0.00020979,2]
[349911240,1737496243179,-500.0,0.00020979,2]
[349911241,1737496243188,-500.0,0.00020979,2]
[349911242,1737496243198,-504.61541776,0.00020979,2]
[349911243,1737496243208,-500.0,0.00020979,2]
[349911244,1737496243218,-500.84808765,0.00020979,2]
[349911245,1737496243227,-500.0,0.00020979,2]
[349911246,1737496243237,-500.0,0.00020979,2]
[349911247,1737496243247,-500.0,0.00020979,2]
[349911248,1737496243257,-500.0,0.00020979,2]
[349911249,1737496243267,-500.0,0.00020979,2]
[349911250,1737496243277,-500.0,0.00020979,2]
[349911251,1737496243288,-500.0,0.00020979,2]
[349911252,1737496243298,-500.0,0.00020979,2]
[349911253,1737496243307,-500.0,0.00020979,2]
[349911254,1737496243318,-500.0,0.00020979,2]
[349911255,1737496243327,-500.0,0.00020979,2]
[349911256,1737496243337,-500.0,0.00020979,2]
[349911257,1737496243347,-500.0,0.00020979,2]
[349911258,1737496243357,-500.0,0.00020979,2]
[349911259,1737496243366,-500.0,0.00020979,2]
[349911260,1737496243376,-500.0,0.00020979,2]
[349911261,1737496243386,-500.0,0.00020979,2]
[349911262,1737496243396,-500.0,0.00020979,2]
[349911263,1737496243405,-500.0,0.00020979,2]
[349911264,1737496243415,-500.0,0.00020979,2]
[349911265,1737496243425,-500.9955463,0.00020979,2]
[349911266,1737496243436,-500.0,0.00020979,2]
[349911267,1737496243445,-500.0,0.00020979,2]
[349911268,1737496243455,-500.0,0.00020979,2]
[349911269,1737496243466,-500.0,0.00020979,2]
[349911270,1737496243476,-500.0,0.00020979,2]
[349911271,1737496243485,-500.0,0.00020979,2]
[349911272,1737496243495,-500.0,0.00020979,2]
[349911273,1737496243504,-500.0,0.00020979,2]
[349911274,1737496243512,-500.0,0.00020979,2]
[349911275,1737496243522,-500.0,0.00020979,2]
[349911276,1737496243531,-500.0,0.00020979,2]
[349911277,1737496243540,-417.87314594,0.00020979,2]
[349911278,1737496243917,-291.508,0.00020878,2]
[349911279,1737496243934,-208.492,0.00020878,2]
[349911280,1737496243944,-82.12685406,0.00020979,2]
[349911281,1737496243953,-500.0,0.00020979,2]
[349911282,1737496243963,-500.0,0.00020979,2]
[349911283,1737496243972,-500.0,0.00020979,2]
[349911284,1737496243982,-500.0,0.00020979,2]
[349911285,1737496243992,-500.0,0.00020979,2]
[349911286,1737496244002,-500.0,0.00020979,2]
[349911287,1737496244012,-165.29888705,0.00020979,2]
[349911288,1737496244022,-195.99994048,0.00020979,2]
[349911289,1737496244032,-354.95148345,0.00020979,2]
[349911290,1737496244041,-500.0,0.00020979,2]
[349911291,1737496244050,-500.0,0.00020979,2]
[349911292,1737496244061,-223.53520898,0.00020979,2]
[349911293,1737496244070,-500.0,0.00020979,2]
[349911294,1737496244080,-500.0,0.00020979,2]
[349911295,1737496244090,-500.0,0.00020979,2]
[349911296,1737496244099,-500.0,0.00020979,2]
[349911297,1737496244109,-500.0,0.00020979,2]
[349911298,1737496244118,-500.0,0.00020979,2]
[349911299,1737496244127,-500.0,0.00020979,2]
[349911300,1737496244137,-500.0,0.00020979,2]
[349911301,1737496244146,-500.0,0.00020979,2]
[349911302,1737496244158,-500.0,0.00020979,2]
[349911303,1737496244169,-500.0,0.00020979,2]
[349911304,1737496244179,-500.0,0.00020979,2]
[349911305,1737496244189,-500.0,0.00020979,2]
[349911306,1737496244200,-500.0,0.00020979,2]
[349911307,1737496244209,-500.0,0.00020979,2]
[349911308,1737496244218,-500.0,0.00020979,2]
[349911309,1737496244229,-500.0,0.00020979,2]
[349911310,1737496244239,-500.0,0.00020979,2]
[349911311,1737496244249,-500.0,0.00020979,2]
[349911312,1737496244259,-500.0,0.00020979,2]
[349911313,1737496244269,-500.0,0.00020979,2]
[349911314,1737496244279,-500.0,0.00020979,2]
[349911315,1737496244290,-500.0,0.00020979,2]
[349911316,1737496244301,-500.0,0.00020979,2]
[349911317,1737496244310,-570.35,0.00020979,2]
[349911318,1737496244319,-500.0,0.00020979,2]
[349911319,1737496244329,-500.0,0.00020979,2]
[349911320,1737496244340,-500.0,0.00020979,2]
[349911321,1737496244349,-500.0,0.00020979,2]
[349911322,1737496244359,-500.0,0.00020979,2]
[349911323,1737496244369,-500.0,0.00020979,2]
[349911324,1737496244379,-500.0,0.00020979,2]
[349911325,1737496244390,-500.0,0.00020979,2]
[349911326,1737496244401,-500.0,0.00020979,2]
[349911327,1737496244410,-500.0,0.00020979,2]
[349911328,1737496244421,-500.0,0.00020979,2]
[349911329,1737496244431,-500.0,0.00020979,2]
[349911330,1737496244441,-500.0,0.00020979,2]
[349911331,1737496244450,-500.0,0.00020979,2]
[349911332,1737496244460,-500.0,0.00020979,2]
[349911333,1737496244470,-308.55412697,0.00020979,2]
[349911334,1737496244481,-500.0,0.00020979,2]
[349911335,1737496244491,-495.69149901,0.00020979,2]
[349911336,1737496244585,-4.30850099,0.00020979,2]
[349911337,1737496244594,-500.0,0.00020979,2]
[349911338,1737496244604,-500.0,0.00020979,2]
[349911339,1737496244614,-508.66546683,0.00020979,2]
[349911340,1737496244623,-500.0,0.00020979,2]
[349911341,1737496244633,-500.0,0.00020979,2]
[349911342,1737496244643,-500.0,0.00020979,2]
[349911343,1737496244652,-500.0,0.00020979,2]
[349911344,1737496244661,-500.0,0.00020979,2]
[349911345,1737496244671,-500.0,0.00020979,2]
[349911346,1737496244681,-500.0,0.00020979,2]
[349911347,1737496244690,-229.02603218,0.00020979,2]
[349911348,1737496245046,-367.87956898,0.00020979,2]
[349911349,1737496245056,-500.0,0.00020979,2]
[349911350,1737496245066,-500.0,0.00020979,2]
[349911351,1737496245075,-500.0,0.00020979,2]
[349911352,1737496245085,-500.0,0.00020979,2]
[349911353,1737496245095,-500.0,0.00020979,2]
[349911354,1737496245105,-598.68,0.00020979,2]
[349911355,1737496245114,-500.0,0.00020979,2]
[349911356,1737496245124,-500.0,0.00020979,2]
[349911357,1737496245134,-500.0,0.00020979,2]
[349911358,1737496245145,-500.0,0.00020979,2]
[349911359,1737496245156,-500.0,0.00020979,2]
[349911360,1737496245167,-516.93737135,0.00020979,2]
[349911361,1737496245179,-68.89662467,0.00020979,2]
[349911362,1737496245495,-649.88,0.00020976,2]
[349911363,1737496245506,-431.10337533,0.00020979,2]
[349911364,1737496245516,-500.0,0.00020979,2]
[349911365,1737496245526,-500.0,0.00020979,2]
[349911366,1737496245536,-500.0,0.00020979,2]
[349911367,1737496245546,-500.0,0.00020979,2]
[349911368,1737496245554,-547.98192052,0.00020979,2]
[349911369,1737496245564,-500.0,0.00020979,2]
[349911370,1737496245574,-500.0,0.00020979,2]
[349911371,1737496245584,-500.0,0.00020979,2]
[349911372,1737496245594,-600.92163416,0.00020979,2]
[349911373,1737496245604,-500.0,0.00020979,2]
[349911374,1737496245614,-500.0,0.00020979,2]
[349911375,1737496245623,-500.0,0.00020979,2]
[349911376,1737496245632,-216.53626363,0.00020979,2]
[349911377,1737496245640,-500.0,0.00020979,2]
[349911378,1737496245648,-500.0,0.00020979,2]
[349911379,1737496245658,-500.0,0.00020979,2]
[349911380,1737496245668,-500.0,0.00020979,2]
[349911381,1737496245682,-500.0,0.00020979,2]
[349911382,1737496245692,-311.44101825,0.00020979,2]
[349911383,1737496245701,-500.0,0.00020979,2]
[349911384,1737496245711,-500.0,0.00020979,2]
[349911385,1737496245720,-500.0,0.00020979,2]
[349911386,1737496245730,-502.07311012,0.00020979,2]
[349911387,1737496245739,-500.0,0.00020979,2]
[349911388,1737496245748,-500.0,0.00020979,2]
[349911389,1737496245758,-500.0,0.00020979,2]
[349911390,1737496245767,-3000.0,0.00020979,2]
[349911391,1737496245777,-500.0,0.00020979,2]
[349911392,1737496245787,-632.89,0.00020979,2]
[349911393,1737496245796,-500.0,0.00020979,2]
[349911394,1737496245806,-500.0,0.00020979,2]
[349911395,1737496245816,-500.0,0.00020979,2]
[349911396,1737496245826,-500.0,0.00020979,2]
[349911397,1737496245835,-500.0,0.00020979,2]
[349911398,1737496245845,-525.66,0.00020979,2]
[349911399,1737496245854,-500.0,0.00020979,2]
[349911400,1737496245864,-500.0,0.00020979,2]
[349911401,1737496245874,-500.0,0.00020979,2]
[349911402,1737496245883,-499.98,0.00020979,2]